fUST/lending_fUST_20250805
["ID","MTS","AMOUNT","RATE_DAILY","PERIOD"]
[377321239,1754340663663,-160.2486403,0.00036986,30]
[377321240,1754340663672,-152.0,0.00037,120]
[377321241,1754340663682,-1417.11,0.00037,7]
[377321242,1754340663692,-3569.6,0.00037,7]
[377321243,1754340663701,-231.67098287,0.00037,3]
[377321244,1754340663712,-160.0,0.00037,3]
[377321245,1754340663721,-461.05335821,0.00037,3]
[377321246,1754340663731,-842.05743881,0.00037,3]
[377321247,1754340663740,-200.0,0.00037003,120]
[377321248,1754340663750,-600.0,0.00037006,5]
[377321249,1754340663759,-151.0,0.000371,14]
[377321250,1754340663769,-151.0,0.000371,14]
[377321251,1754340663778,-151.0,0.000371,14]
[377321252,1754340663787,-151.0,0.000371,14]
[377321253,1754340663797,-151.0,0.000371,14]
[377321254,1754340663807,-151.0,0.000371,14]
[377321255,1754340663817,-151.0,0.000371,14]
[377321256,1754340663827,-151.0,0.000371,14]
[377321257,1754340663837,-151.0,0.000371,14]
[377321258,1754340663847,-151.0,0.000371,14]
[377321259,1754340663857,-151.0,0.000371,14]
[377321260,1754340663867,-344.798651,0.000371,14]
[377321261,1754340663876,-344.798651,0.000371,14]
[377321262,1754340663886,-5400.0,0.00037256,5]
[377321263,1754340663895,-4500.0,0.00037256,5]
[377321264,1754340663904,-4500.0,0.00037256,5]
[377321265,1754340663914,-151.0,0.0003726,14]
[377321266,1754340663924,-882.44,0.0003726,2]
[377321267,1754340663934,-1299.76,0.0003726,2]
[377321268,1754340663943,-2365.37,0.0003726,2]
[377321269,1754340663953,-620.86,0.0003726,2]
[377321270,1754340663963,-701.71,0.0003726,2]
[377321271,1754340663972,-483.5,0.0003726,2]
[377321272,1754340663982,-171.79,0.0003726,2]
[377321273,1754340663992,-460.0,0.0003726,2]
[377321274,1754340664002,-460.0,0.0003726,2]
[377321275,1754340664012,-1558.41,0.0003726,2]
[377321276,1754340664021,-175.0,0.0003726,2]
[377321277,1754340664031,-460.0,0.0003726,2]
[377321278,1754340664041,-460.0,0.0003726,2]
[377321279,1754340664050,-460.0,0.0003726,2]
[377321280,1754340664060,-1259.66,0.0003726,2]
[377321281,1754340664069,-5166.09,0.0003726,2]
[377321282,1754340664079,-460.0,0.0003726,2]
[377321283,1754340664089,-4368.52,0.0003726,2]
[377321284,1754340664099,-2550.51,0.0003726,2]
[377321285,1754340664108,-1004.67,0.0003726,2]
[377321286,1754340664117,-460.0,0.0003726,2]
[377321287,1754340664127,-473.48,0.0003726,2]
[377321288,1754340664136,-409.93,0.0003726,2]
[377321289,1754340664146,-460.0,0.0003726,2]
[377321290,1754340664155,-945.19,0.0003726,2]
[377321291,1754340664165,-460.0,0.0003726,2]
[377321292,1754340664174,-1070.06,0.0003726,2]
[377321293,1754340664184,-817.17,0.0003726,2]
[377321294,1754340664193,-710.67,0.0003726,2]
[377321295,1754340664202,-6244.75,0.0003726,2]
[377321296,1754340664212,-1910.52,0.0003726,2]
[377321297,1754340664222,-19939.19,0.0003726,120]
[377321298,1754340664231,-1601.57,0.0003726,2]
[377321299,1754340664240,-2947.65,0.0003726,2]
[377321300,1754340664250,-1964.74,0.0003726,2]
[377321301,1754340664260,-460.0,0.0003726,2]
[377321302,1754340664269,-615.23,0.0003726,2]
[377321303,1754340664279,-494.28,0.0003726,2]
[377321304,1754340664288,-960.0,0.00037284,2]
[377321305,1754340664298,-195.3,0.00037314,15]
[377321306,1754340664309,-200.0,0.00037389,120]
[377321307,1754340664318,-200.0,0.00037427,120]
[377321308,1754340664328,-635.0,0.00037447,2]
[377321309,1754340664338,-2148.0,0.00037447,2]
[377321310,1754340664349,-970.0,0.00037447,2]
[377321311,1754340664358,-206.0,0.0003753,30]
[377321312,1754340664368,-882.44,0.00037534,2]
[377321313,1754340664378,-1299.76,0.00037534,2]
[377321314,1754340664388,-2365.37,0.00037534,2]
[377321315,1754340664397,-620.86,0.00037534,2]
[377321316,1754340664407,-701.71,0.00037534,2]
[377321317,1754340664417,-483.5,0.00037534,2]
[377321318,1754340664426,-460.0,0.00037534,2]
[377321319,1754340664436,-460.0,0.00037534,2]
[377321320,1754340664446,-1558.41,0.00037534,2]
[377321321,1754340664456,-460.0,0.00037534,2]
[377321322,1754340664465,-333.45,0.00037534,2]
[377321323,1754340664475,-460.0,0.00037534,2]
[377321324,1754340664484,-1259.66,0.00037534,2]
[377321325,1754340664494,-5166.09,0.00037534,2]
[377321326,1754340664503,-460.0,0.00037534,2]
[377321327,1754340664513,-4368.52,0.00037534,2]
[377321328,1754340664523,-2550.51,0.00037534,2]
[377321329,1754340664532,-1004.67,0.00037534,2]
[377321330,1754340664542,-460.0,0.00037534,2]
[377321331,1754340664555,-473.48,0.00037534,2]
[377321332,1754340664564,-460.0,0.00037534,2]
[377321333,1754340664574,-945.19,0.00037534,2]
[377321334,1754340664583,-460.0,0.00037534,2]
[377321335,1754340664594,-1070.06,0.00037534,2]
[377321336,1754340664604,-817.17,0.00037534,2]
[377321337,1754340664614,-710.67,0.00037534,2]
[377321338,1754340664624,-6244.75,0.00037534,2]
[377321339,1754340664634,-1910.52,0.00037534,2]
[377321340,1754340664643,-1601.57,0.00037534,2]
[377321341,1754340664653,-2947.65,0.00037534,2]
[377321342,1754340664663,-1964.74,0.00037534,2]
[377321343,1754340664672,-460.0,0.00037534,2]
[377321344,1754340664682,-615.23,0.00037534,2]
[377321345,1754340664691,-494.28,0.00037534,2]
[377321346,1754340664701,-357.127526,0.00037534,30]
[377321347,1754340664710,-160.2834123,0.00037534,30]
[377321348,1754340664720,-292.8695803,0.00037534,30]
[377321349,1754340664730,-160.2834123,0.00037534,30]
[377321350,1754340664739,-292.8695803,0.00037534,30]
[377321351,1754340664748,-1159.2756231,0.00037534,30]
[377321352,1754340664757,-160.2834123,0.00037534,30]
[377321353,1754340664767,-292.8695803,0.00037534,30]
[377321354,1754340664777,-160.2834123,0.00037534,30]
[377321355,1754340664787,-159.6618605,0.00037534,30]
[377321356,1754340664796,-292.8695803,0.00037534,30]
[377321357,1754340664806,-292.8695803,0.00037534,30]
[377321358,1754340664815,-318.9621821,0.00037534,30]
[377321359,1754340664826,-982.80125239,0.00037553,5]
[377321360,1754340664836,-1009.47617386,0.000378,2]
[377321361,1754340664846,-6000.0,0.00037804,5]
[377321362,1754340664856,-5000.0,0.00037804,5]
[377321363,1754340664866,-5000.0,0.00037804,5]
[377321364,1754340664876,-1600.0,0.00037808,7]
[377321365,1754340664886,-882.44,0.00037808,2]
[377321366,1754340664895,-1299.76,0.00037808,2]
[377321367,1754340664906,-2365.37,0.00037808,2]
[377321368,1754340664917,-620.86,0.00037808,2]
[377321369,1754340664927,-701.71,0.00037808,2]
[377321370,1754340664937,-483.5,0.00037808,2]
[377321371,1754340664947,-460.0,0.00037808,2]
[377321372,1754340664956,-460.0,0.00037808,2]
[377321373,1754340664966,-1558.41,0.00037808,2]
[377321374,1754340664975,-460.0,0.00037808,2]
[377321375,1754340664985,-460.0,0.00037808,2]
[377321376,1754340664995,-1259.66,0.00037808,2]
[377321377,1754340665077,-5166.09,0.00037808,2]
[377321378,1754340665096,-337.72,0.00037808,2]
[377321379,1754340665105,-4368.52,0.00037808,2]
[377321380,1754340665115,-2550.51,0.00037808,2]
[377321381,1754340665126,-1004.67,0.00037808,2]
[377321382,1754340665136,-460.0,0.00037808,2]
[377321383,1754340665146,-473.48,0.00037808,2]
[377321384,1754340665156,-460.0,0.00037808,2]
[377321385,1754340665166,-945.19,0.00037808,2]
[377321386,1754340665176,-460.0,0.00037808,2]
[377321387,1754340665186,-1070.06,0.00037808,2]
[377321388,1754340665195,-817.17,0.00037808,2]
[377321389,1754340665205,-710.67,0.00037808,2]
[377321390,1754340665215,-6244.75,0.00037808,2]
[377321391,1754340665226,-1910.52,0.00037808,2]
[377321392,1754340665235,-1601.57,0.00037808,2]
[377321393,1754340665245,-2947.65,0.00037808,2]
[377321394,1754340665255,-1964.74,0.00037808,2]
[377321395,1754340665264,-460.0,0.00037808,2]
[377321396,1754340665275,-615.23,0.00037808,2]
[377321397,1754340665284,-494.28,0.00037808,2]
[377321398,1754340665294,-578.7022727,0.00037808,30]
[377321399,1754340665303,-578.8327873,0.00037808,30]
[377321400,1754340665313,-540.0,0.00037832,2]
[377321401,1754340665323,-200.0,0.000379,120]
[377321402,1754340665332,-800.0,0.00037905,7]
[377321403,1754340665344,-200.0,0.00037914,15]
[377321404,1754340665354,-200.0,0.00037914,15]
[377321405,1754340665364,-200.0,0.00037914,15]
[377321406,1754340665375,-200.0,0.00037914,15]
[377321407,1754340665385,-375.0,0.00037914,15]
[377321408,1754340665395,-195.3,0.00037985,15]
[377321409,1754340665404,-500.0,0.0003799,120]
[377321410,1754340665414,-500.0,0.00038,5]
[377321411,1754340665424,-68550.0729879,0.00038,2]
[377321412,1754340665433,-500.0,0.00038,5]
[377321413,1754340665442,-9075.15,0.00038,14]
[377321414,1754340665452,-500.0,0.00038,5]
[377321415,1754340665462,-882.44,0.00038082,2]
[377321416,1754340665471,-1299.76,0.00038082,2]
[377321417,1754340665481,-2365.37,0.00038082,2]
[377321418,1754340665490,-620.86,0.00038082,2]
[377321419,1754340665500,-701.71,0.00038082,2]
[377321420,1754340665510,-483.5,0.00038082,2]
[377321421,1754340665519,-460.0,0.00038082,2]
[377321422,1754340665529,-528.14,0.00038082,2]
[377321423,1754340665539,-1558.41,0.00038082,2]
[377321424,1754340665551,-158.51,0.00038082,2]
[377321425,1754340665561,-368.52,0.00038082,2]
[377321426,1754340665571,-1259.66,0.00038082,2]
[377321427,1754340665580,-5166.09,0.00038082,2]
[377321428,1754340665590,-4368.52,0.00038082,2]
[377321429,1754340665600,-2550.51,0.00038082,2]
[377321430,1754340665609,-1004.67,0.00038082,2]
[377321431,1754340665621,-460.0,0.00038082,2]
[377321432,1754340665631,-473.48,0.00038082,2]
[377321433,1754340665640,-460.0,0.00038082,2]
[377321434,1754340665650,-945.19,0.00038082,2]
[377321435,1754340665660,-460.0,0.00038082,2]
[377321436,1754340665670,-1070.06,0.00038082,2]
[377321437,1754340665679,-817.17,0.00038082,2]
[377321438,1754340665689,-710.67,0.00038082,2]
[377321439,1754340665698,-6244.75,0.00038082,2]
[377321440,1754340665708,-1910.52,0.00038082,2]
[377321441,1754340665717,-1601.57,0.00038082,2]
[377321442,1754340665727,-2947.65,0.00038082,2]
[377321443,1754340665736,-1964.74,0.00038082,2]
[377321444,1754340665746,-460.0,0.00038082,2]
[377321445,1754340665755,-615.23,0.00038082,2]
[377321446,1754340665766,-494.28,0.00038082,2]
[377321447,1754340665775,-35380.46,0.000381,14]
[377321448,1754340665786,-154.56468,0.000381,14]
[377321449,1754340665795,-151.741583,0.000381,14]
[377321450,1754340665805,-151.0,0.000381,14]
[377321451,1754340665814,-200.0,0.0003812,120]
[377321452,1754340665823,-800.0,0.00038193,7]
[377321453,1754340665833,-1963.68618715,0.000382,120]
[377321454,1754340665842,-190.0,0.00038233,7]
[377321455,1754340665853,-800.0,0.00038242,7]
[377321456,1754340665862,-152.0,0.000383,120]
[377321457,1754340665871,-200.0,0.00038319,120]
[377321458,1754340665881,-6600.0,0.00038352,5]
[377321459,1754340665890,-5500.0,0.00038352,5]
[377321460,1754340665900,-4322.01435023,0.00038352,5]
[377321461,1754340665910,-228.940804,0.00038356,14]
[377321462,1754340665922,-151.0,0.00038356,14]
[377321463,1754340665932,-151.0,0.00038356,14]
[377321464,1754340665943,-151.0,0.00038356,14]
[377321465,1754340665953,-882.44,0.00038356,120]
[377321466,1754340665963,-1299.76,0.00038356,120]
[377321467,1754340665973,-2365.37,0.00038356,120]
[377321468,1754340665982,-620.86,0.00038356,120]
[377321469,1754340665992,-701.71,0.00038356,120]
[377321470,1754340666001,-483.5,0.00038356,120]
[377321471,1754340666011,-460.0,0.00038356,120]
[377321472,1754340666021,-1558.41,0.00038356,120]
[377321473,1754340666031,-1259.66,0.00038356,120]
[377321474,1754340666041,-5166.09,0.00038356,120]
[377321475,1754340666052,-2550.51,0.00038356,120]
[377321476,1754340666062,-4368.52,0.00038356,120]
[377321477,1754340666072,-1004.67,0.00038356,120]
[377321478,1754340666082,-190.39,0.00038356,120]
[377321479,1754340666091,-473.48,0.00038356,120]
[377321480,1754340666100,-460.0,0.00038356,120]
[377321481,1754340666110,-945.19,0.00038356,120]
[377321482,1754340666119,-460.0,0.00038356,120]
[377321483,1754340666128,-1070.06,0.00038356,120]
[377321484,1754340666139,-817.17,0.00038356,120]
[377321485,1754340666148,-710.67,0.00038356,120]
[377321486,1754340666157,-6244.75,0.00038356,120]
[377321487,1754340666170,-1910.52,0.00038356,120]
[377321488,1754340666179,-19939.19,0.00038356,120]
[377321489,1754340666189,-1601.57,0.00038356,120]
[377321490,1754340666198,-2947.65,0.00038356,120]
[377321491,1754340666208,-1964.74,0.00038356,120]
[377321492,1754340666218,-460.0,0.00038356,120]
[377321493,1754340666227,-615.23,0.00038356,120]
[377321494,1754340666237,-494.28,0.00038356,120]
[377321495,1754340666246,-206.0,0.0003836,30]
[377321496,1754340666257,-500.0,0.00038364,7]
[377321497,1754340666267,-800.0,0.00038365,7]
[377321498,1754340666277,-800.0,0.00038395,7]
[377321499,1754340666287,-600.0,0.00038399,2]
[377321500,1754340666296,-800.0,0.00038523,7]
[377321501,1754340666307,-154.56468,0.00038529,7]
[377321502,1754340666317,-882.44,0.0003863,120]
[377321503,1754340666326,-1299.76,0.0003863,120]
[377321504,1754340666336,-2365.37,0.0003863,120]
[377321505,1754340666345,-620.86,0.0003863,120]
[377321506,1754340666354,-701.71,0.0003863,120]
[377321507,1754340666363,-483.5,0.0003863,120]
[377321508,1754340666373,-324.03,0.0003863,120]
[377321509,1754340666382,-1558.41,0.0003863,120]
[377321510,1754340666391,-1259.66,0.0003863,120]
[377321511,1754340666400,-5166.09,0.0003863,120]
[377321512,1754340666409,-2550.51,0.0003863,120]
[377321513,1754340666423,-4368.52,0.0003863,120]
[377321514,1754340666432,-1004.67,0.0003863,120]
[377321515,1754340666441,-473.48,0.0003863,120]
[377321516,1754340666451,-460.0,0.0003863,120]
[377321517,1754340666461,-945.19,0.0003863,120]
[377321518,1754340666471,-460.0,0.0003863,120]
[377321519,1754340666480,-1070.06,0.0003863,120]
[377321520,1754340666490,-817.17,0.0003863,120]
[377321521,1754340666571,-710.67,0.0003863,120]
[377321522,1754340666581,-6244.75,0.0003863,120]
[377321523,1754340666590,-1910.52,0.0003863,120]
[377321524,1754340666601,-1601.57,0.0003863,120]
[377321525,1754340666610,-2947.65,0.0003863,120]
[377321526,1754340666620,-1964.74,0.0003863,120]
[377321527,1754340666631,-460.0,0.0003863,120]
[377321528,1754340666641,-615.23,0.0003863,120]
[377321529,1754340666651,-494.28,0.0003863,120]
[377321530,1754340666660,-153.0,0.0003863,30]
[377321531,1754340666673,-153.0,0.0003863,30]
[377321532,1754340666683,-195.3,0.00038657,15]
[377321533,1754340666692,-1383.21257029,0.0003866,7]
[377321534,1754340666702,-800.0,0.00038691,7]
[377321535,1754340666711,-3569.6,0.000387,7]
[377321536,1754340666721,-500.0,0.00038777,7]
[377321537,1754340666731,-601.7120757,0.00038799,2]
[377321538,1754340666741,-1417.11,0.000388,7]
[377321539,1754340666750,-12500.0,0.0003889,10]
[377321540,1754340666760,-12500.0,0.0003889,10]
[377321541,1754340666769,-7200.0,0.000389,5]
[377321542,1754340666779,-6000.0,0.000389,5]
[377321543,1754340666789,-882.44,0.00038904,120]
[377321544,1754340666801,-151.0,0.00038904,14]
[377321545,1754340666818,-1299.76,0.00038904,120]
[377321546,1754340666835,-2365.37,0.00038904,120]
[377321547,1754340666852,-620.86,0.00038904,120]
[377321548,1754340666866,-701.71,0.00038904,120]
[377321549,1754340666876,-483.5,0.00038904,120]
[377321550,1754340666886,-151.0,0.00038904,14]
[377321551,1754340666895,-1558.41,0.00038904,120]
[377321552,1754340666904,-151.0,0.00038904,14]
[377321553,1754340666916,-1259.66,0.00038904,120]
[377321554,1754340666925,-151.0,0.00038904,14]
[377321555,1754340666934,-5166.09,0.00038904,120]
[377321556,1754340666944,-2550.51,0.00038904,120]
[377321557,1754340666954,-4368.52,0.00038904,120]
[377321558,1754340666963,-1004.67,0.00038904,120]
[377321559,1754340666973,-344.798651,0.00038904,14]
[377321560,1754340666982,-344.798651,0.00038904,14]
[377321561,1754340666991,-473.48,0.00038904,120]
[377321562,1754340667000,-460.0,0.00038904,120]
[377321563,1754340667012,-945.19,0.00038904,120]
[377321564,1754340667022,-460.0,0.00038904,120]
[377321565,1754340667031,-1070.06,0.00038904,120]
[377321566,1754340667040,-817.17,0.00038904,120]
[377321567,1754340667050,-710.67,0.00038904,120]
[377321568,1754340667060,-6244.75,0.00038904,120]
[377321569,1754340667069,-1910.52,0.00038904,120]
[377321570,1754340667078,-236.26184203,0.00038904,120]
[377321571,1754340667361,-151.0,0.00028754,2]
[377321572,1754340667371,-151.0,0.00028754,2]
[377321573,1754340667380,-151.0,0.00028754,2]
[377321574,1754340667390,-151.0,0.00028754,2]
[377321575,1754340667399,-1365.30815797,0.00038904,120]
[377321576,1754340667408,-2947.65,0.00038904,120]
[377321577,1754340667420,-1964.74,0.00038904,120]
[377321578,1754340667429,-223.76,0.00038904,120]
[377321579,1754340667439,-615.23,0.00038904,120]
[377321580,1754340667448,-494.28,0.00038904,120]
[377321581,1754340667458,-307.9126599,0.00038904,30]
[377321582,1754340667467,-151.0,0.00038916,14]
[377321583,1754340667476,-800.0,0.00038917,7]
[377321584,1754340667486,-1152.0,0.0003895,5]
[377321585,1754340667496,-800.0,0.00038974,7]
[377321586,1754340667505,-1000.0,0.00039,120]
[377321587,1754340667515,-1140.13318989,0.00039,60]
[377321588,1754340667527,-8045.08147695,0.00039,60]
[377321589,1754340667536,-151.957019,0.00039,14]
[377321590,1754340667547,-151.0,0.00039,14]
[377321591,1754340667569,-271.440196,0.00039,14]
[377321592,1754340667581,-231.67098287,0.00039,10]
[377321593,1754340667591,-461.05335821,0.00039,10]
[377321594,1754340667600,-648.84837412,0.00039,10]
[377321595,1754340667678,-12003.33080771,0.00039,10]
[377321596,1754340667688,-154.56468,0.00039036,30]
[377321597,1754340667697,-7847.09797819,0.00039086,10]
[377321598,1754340667707,-978.00805837,0.00039165,2]
[377321599,1754340667718,-1197.99764735,0.00039165,2]
[377321600,1754340667728,-882.44,0.00039178,120]
[377321601,1754340667737,-1299.81359527,0.00039178,120]
[377321602,1754340667746,-2365.37,0.00039178,120]
[377321603,1754340667756,-621.0,0.00039178,120]
[377321604,1754340667765,-701.83,0.00039178,120]
[377321605,1754340667775,-483.66,0.00039178,120]
[377321606,1754340667784,-1259.66745193,0.00039178,120]
[377321607,1754340667858,-5166.24552764,0.00039178,120]
[377321608,1754340667878,-2550.70114063,0.00039178,120]
[377321609,1754340667888,-4368.57367456,0.00039178,120]
[377321610,1754340667897,-473.68,0.00039178,120]
[377321611,1754340667907,-156.76,0.00039178,120]
[377321612,1754340667917,-945.22493862,0.00039178,120]
[377321613,1754340667927,-185.28,0.00039178,120]
[377321614,1754340667936,-1070.12650732,0.00039178,120]
[377321615,1754340667946,-710.76408019,0.00039178,120]
[377321616,1754340667956,-6244.82557189,0.00039178,120]
[377321617,1754340667966,-1910.56,0.00039178,120]
[377321618,1754340667975,-1601.80157729,0.00039178,120]
[377321619,1754340667985,-2947.66,0.00039178,120]
[377321620,1754340667994,-1964.79637201,0.00039178,120]
[377321621,1754340668004,-615.37852464,0.00039178,120]
[377321622,1754340668014,-494.48,0.00039178,120]
[377321623,1754340668023,-206.0,0.0003918,30]
[377321624,1754340668033,-500.0,0.00039241,7]
[377321625,1754340668042,-500.0,0.00039326,7]
[377321626,1754340668053,-195.3,0.00039328,15]
[377321627,1754340668063,-800.0,0.00039393,7]
[377321628,1754340668073,-800.0,0.00039414,7]
[377321629,1754340668083,-800.0,0.00039447,7]
[377321630,1754340668092,-7800.0,0.00039448,5]
[377321631,1754340668102,-6500.0,0.00039448,5]
[377321632,1754340668112,-1600.0,0.00039452,7]
[377321633,1754340668122,-19939.19,0.00039452,120]
[377321634,1754340668131,-358.7268859,0.00039452,30]
[377321635,1754340668141,-800.0,0.00039454,7]
[377321636,1754340668150,-154.56468,0.00039479,2]
[377321637,1754340668159,-1000.0,0.000395,2]
[377321638,1754340668173,-3591.14557931,0.000396,120]
[377321639,1754340668183,-800.0,0.00039615,7]
[377321640,1754340668192,-2269.0,0.00039615,5]
[377321641,1754340668202,-298.80567182,0.00039666,7]
[377321642,1754340668302,-430.6428066,0.00031518,30]
[377321643,1754340668312,-460.0,0.00032876,2]
[377321644,1754340668322,-1492.14,0.0003339,10]
[377321645,1754340668331,-501.19432818,0.00039666,7]
[377321646,1754340668341,-154.56468,0.00039672,15]
[377321647,1754340668352,-152.0,0.000397,120]
[377321648,1754340668362,-2593.88991153,0.000397,14]
[377321649,1754340668373,-6481.26008847,0.000397,14]
[377321650,1754340668383,-154.56468,0.0003971,10]
[377321651,1754340668392,-14208.57060813,0.000398,14]
[377321652,1754340668403,-21171.88939187,0.000398,14]
[377321653,1754340668413,-154.56468,0.00039833,5]
[377321654,1754340668425,-154.56468,0.00039986,4]
[377321655,1754340668434,-1000.0,0.0003999,120]
[377321656,1754340668444,-22182.76520018,0.0003999,7]
[377321657,1754340685083,527.23761927,0.00028,3]
[377321658,1754340689122,35203.53936856,0.00028615,2]
[377321659,1754340689144,40000.0,0.00028615,2]
[377321660,1754340689165,40000.0,0.00028615,2]
[377321661,1754340689186,40000.0,0.00028615,2]
[377321662,1754340689209,40000.0,0.00028615,2]
[377321663,1754340689230,40000.0,0.00028615,2]
[377321664,1754340689252,40000.0,0.00028615,2]
[377321665,1754340689274,40000.0,0.00028615,2]
[377321666,1754340689296,40000.0,0.00028615,2]
[377321667,1754340689320,14796.46063144,0.00028615,2]
[377321673,1754340763740,312.16666667,0.00028,3]
[377321674,1754340764681,312.16666667,0.00028,3]
[377321675,1754340779008,176.9,0.00027478,15]
[377321676,1754340779054,176.9,0.00027778,15]
[377321677,1754340779140,176.9,0.00027878,15]
[377321678,1754340780496,176.9,0.00027578,15]
[377321679,1754340780755,176.9,0.00027678,15]
[377321680,1754340854946,23694.70603522,0.00028615,2]
[377321681,1754340854970,40000.0,0.00028615,2]
[377321682,1754340854993,40000.0,0.00028615,2]
[377321683,1754340855016,40000.0,0.00028615,2]
[377321684,1754340855039,40000.0,0.00028615,2]
[377321685,1754340855062,40000.0,0.00028615,2]
[377321686,1754340855085,40000.0,0.00028615,2]
[377321687,1754340855108,40000.0,0.00028615,2]
[377321688,1754340855131,40000.0,0.00028615,2]
[377321689,1754340855153,26305.29396478,0.00028615,2]
[377321690,1754340899730,251.0376184,0.000277,2]
[377321691,1754340996365,1246.01366498,0.00028602,2]
[377321692,1754341026336,12197.65475184,0.00028604,2]
[377321693,1754341026361,40000.0,0.00028604,2]
[377321694,1754341026388,40000.0,0.00028604,2]
[377321695,1754341026414,40000.0,0.00028604,2]
[377321696,1754341026440,40000.0,0.00028604,2]
[377321697,1754341026467,40000.0,0.00028604,2]
[377321698,1754341035855,2969.04276233,0.000261,2]
[377321699,1754341037675,150.0,0.00023874,2]
[377321700,1754341038073,150.0,0.00025011,2]
[377321701,1754341043701,5000.0,0.000261,2]
[377321702,1754341052370,5000.0,0.000261,2]
[377321703,1754341059576,157.39292989,8.3e-07,2]
[377321704,1754341059712,157.39292989,8.3e-07,2]
[377321705,1754341059808,157.39292989,8.3e-07,2]
[377321706,1754341059913,157.39292989,8.3e-07,2]
[377321707,1754341060010,157.39292989,8.3e-07,2]
[377321708,1754341060145,157.39292989,8.3e-07,2]
[377321709,1754341060231,5000.0,0.000261,2]
[377321710,1754341060261,157.39292989,8.3e-07,2]
[377321711,1754341060357,157.39292989,8.3e-07,2]
[377321712,1754341060474,157.39292989,8.3e-07,2]
[377321713,1754341060589,157.39292989,8.3e-07,2]
[377321714,1754341068271,5000.0,0.000261,2]
[377321715,1754341076076,5000.0,0.000261,2]
[377321716,1754341084103,5000.0,0.000261,2]
[377321717,1754341092372,5000.0,0.000261,2]
[377321718,1754341100671,214.23529378,0.000261,2]
[377321719,1754341108969,5000.0,0.000261,2]
[377321720,1754341124120,5000.0,0.000261,2]
[377321721,1754341139790,5000.0,0.000261,2]
[377321722,1754341140339,-180.254418,0.00027594,2]
[377321723,1754341157457,5000.0,0.000261,2]
[377321724,1754341172408,5000.0,0.000261,2]
[377321726,1754341187518,5000.0,0.000261,2]
[377321727,1754341202923,500.0,0.00025205,2]
[377321728,1754341203388,500.0,0.00025205,2]
[377321729,1754341203735,5000.0,0.000261,2]
[377321730,1754341203766,500.0,0.00025205,2]
[377321731,1754341204079,500.0,0.00025205,2]
[377321732,1754341204438,500.0,0.00025205,2]
[377321733,1754341209464,500.0,0.00025205,2]
[377321734,1754341209825,500.0,0.00025205,2]
[377321735,1754341210165,500.0,0.00025205,2]
[377321736,1754341210500,500.0,0.00025205,2]
[377321737,1754341218898,5000.0,0.000261,2]
[377321738,1754341234383,5000.0,0.000261,2]
[377321739,1754341250766,5000.0,0.000261,2]
[377321740,1754341266697,5000.0,0.000261,2]
[377321741,1754341284107,5000.0,0.000261,2]
[377321742,1754341299224,5000.0,0.000261,2]
[377321743,1754341315348,5000.0,0.000261,2]
[377321744,1754341331921,5000.0,0.000261,2]